fUSD/lending_fUSD_20240525
["ID","MTS","AMOUNT","RATE_DAILY","PERIOD"]
[327925862,1716648645830,-161.619254,0.00022525,2]
[327925863,1716648645839,-154.92674632,0.00022547,2]
[327925864,1716648645849,-150.0,0.00022661,2]
[327925865,1716648645900,-157.2664868,0.0002273,2]
[327925866,1716648645910,-153.10769663,0.00022735,2]
[327925867,1716648645919,-152.79444414,0.00022754,2]
[327925868,1716648645928,-166.66666666,0.00022761,2]
[327925869,1716648645937,-382.0,0.0002279,2]
[327925870,1716648645947,-210.0,0.0002279,2]
[327925871,1716648645958,-166.66666666,0.00022808,2]
[327925872,1716648645969,-153.10769663,0.00022852,2]
[327925873,1716648645978,-375.48871791,0.00022879,2]
[327925874,1716648645987,-151.0,0.000229,7]
[327925875,1716648645997,-151.0,0.000229,7]
[327925876,1716648646005,-31443.45530066,0.000229,5]
[327925877,1716648646015,-238.78578006,0.00022906,2]
[327925878,1716648646024,-155.32938529,0.00022998,2]
[327925879,1716648646033,-1000.0,0.00023,4]
[327925880,1716648646043,-155.47019334,0.00023,2]
[327925881,1716648646052,-1100.0,0.00023,2]
[327925882,1716648646061,-166.66666667,0.00023001,2]
[327925883,1716648646070,-157.2664868,0.00023055,2]
[327925884,1716648646080,-2565.47546882,0.00023127,2]
[327925885,1716648646089,-459.06088173,0.00023129,2]
[327925886,1716648646099,-152.34218529,0.00023138,2]
[327925887,1716648646108,-150.0,0.00023161,2]
[327925888,1716648646118,-152.34218529,0.00023166,2]
[327925889,1716648646128,-169.1813528,0.00023171,2]
[327925890,1716648646137,-177.01,0.00023178,2]
[327925891,1716648646146,-150.0,0.00023178,2]
[327925892,1716648646155,-150.0,0.00023178,2]
[327925893,1716648646164,-150.0,0.00023178,2]
[327925894,1716648646173,-150.0,0.00023178,2]
[327925895,1716648646183,-150.0,0.00023178,2]
[327925896,1716648646192,-150.0,0.00023178,2]
[327925897,1716648646201,-150.0,0.00023178,2]
[327925898,1716648646210,-375.48871791,0.00023204,2]
[327925899,1716648646220,-238.78578006,0.00023212,2]
[327925900,1716648646229,-153.10769663,0.00023247,2]
[327925901,1716648646239,-159.86547132,0.00023249,2]
[327925902,1716648646248,-400.43,0.00023289,2]
[327925903,1716648646258,-375.48871791,0.00023295,2]
[327925904,1716648646268,-382.0,0.000233,2]
[327925905,1716648646278,-210.0,0.000233,2]
[327925906,1716648646287,-375.48871791,0.0002331,2]
[327925907,1716648646296,-375.48871791,0.00023322,2]
[327925908,1716648646306,-459.06088173,0.00023387,2]
[327925909,1716648646315,-238.78578006,0.00023387,2]
[327925910,1716648646324,-2005.79258683,0.000234,2]
[327925911,1716648646335,-327.0,0.000234,5]
[327925913,1716648646344,-166.66666665,0.00023416,2]
[327925914,1716648646353,-152.79444414,0.00023419,2]
[327925916,1716648646362,-154.92674632,0.00023429,2]
[327925917,1716648646372,-153.10769663,0.00023438,2]
[327925919,1716648646382,-1201.13885187,0.00023457,2]
[327925921,1716648646391,-155.32938529,0.00023495,2]
[327925922,1716648646400,-692.98,0.000235,2]
[327925924,1716648646410,-152.34218529,0.00023506,2]
[327925926,1716648646420,-154.92674632,0.00023559,2]
[327925928,1716648646430,-91306.11333018,0.000236,2]
[327925929,1716648646439,-155.32938529,0.00023612,2]
[327925930,1716648646448,-170.47468174,0.0002366,2]
[327925931,1716648646458,-154.92674632,0.00023697,2]
[327925932,1716648646467,-150.0,0.00023702,2]
[327925933,1716648646477,-715.49994283,0.00023819,2]
[327925934,1716648646486,-382.0,0.0002382,2]
[327925935,1716648646496,-210.0,0.0002382,2]
[327925936,1716648646506,-459.06088173,0.00023821,2]
[327925937,1716648646515,-153.10769663,0.00023848,2]
[327925941,1716648646524,-159.1909715,0.00023877,2]
[327925942,1716648646534,-2210.73497329,0.000239,2]
[327925944,1716648646543,-154.03762695,0.00023923,2]
[327925946,1716648646553,-166.66666666,0.00023935,2]
[327925948,1716648646562,-154.92674632,0.00023936,2]
[327925950,1716648646572,-375.48871791,0.00023938,2]
[327925951,1716648646584,-459.06088173,0.00023941,2]
[327925952,1716648646594,-159.24928825,0.00023951,2]
[327925953,1716648646603,-153.10769663,0.00023976,2]
[327925954,1716648646612,-765.0918617,0.00024,4]
[327925955,1716648646621,-150.0,0.00024,2]
[327925956,1716648646631,-150.0,0.00024,2]
[327925957,1716648646640,-150.0,0.00024,2]
[327925958,1716648646650,-150.0,0.00024,2]
[327925959,1716648646659,-150.0,0.00024,2]
[327925960,1716648646668,-150.0,0.00024,2]
[327925961,1716648646677,-150.0,0.00024,2]
[327925962,1716648646687,-150.0,0.00024,2]
[327925963,1716648646696,-150.0,0.00024,2]
[327925964,1716648646706,-156.13314999,0.00024003,2]
[327925965,1716648646715,-154.92674632,0.00024073,2]
[327925966,1716648646724,-152.79444414,0.00024084,2]
[327925967,1716648646733,-509.67692697,0.00024243,2]
[327925968,1716648646743,-382.0,0.0002433,2]
[327925969,1716648646753,-210.0,0.0002433,2]
[327925970,1716648646762,-157.2664868,0.0002436,2]
[327925971,1716648646772,-375.48871791,0.00024374,2]
[327925972,1716648646781,-153.10769663,0.00024421,2]
[327925973,1716648646791,-152.96549234,0.00024427,2]
[327925974,1716648646801,-375.48871791,0.0002443,2]
[327925975,1716648646811,-238.78578006,0.00024486,2]
[327925976,1716648646820,-715.49994283,0.00024489,2]
[327925977,1716648646830,-1478.14157316,0.000245,3]
[327925978,1716648646841,-169.1813528,0.0002451,2]
[327925979,1716648646850,-152.34218529,0.00024575,2]
[327925980,1716648646859,-715.49994283,0.00024577,2]
[327925981,1716648646869,-238.78578006,0.00024602,2]
[327925982,1716648646884,-151.0,0.00024658,7]
[327925983,1716648646893,-151.0,0.00024658,7]
[327925984,1716648646902,-151.0,0.00024658,7]
[327925985,1716648646912,-151.0,0.00024658,7]
[327925986,1716648646922,-503.0,0.000247,2]
[327925987,1716648646931,-238.78578006,0.00024718,2]
[327925988,1716648646941,-159.1909715,0.00024759,2]
[327925989,1716648646952,-382.0,0.0002485,2]
[327925990,1716648646962,-210.0,0.0002485,2]
[327925991,1716648646972,-154.92674632,0.00024871,2]
[327925992,1716648646982,-240.33673419,0.00024888,7]
[327925993,1716648646991,-12626.88760889,0.00024889,2]
[327925994,1716648647001,-12626.8876088,0.00024889,2]
[327925995,1716648647010,-12626.8876088,0.00024889,2]
[327925996,1716648647020,-12626.8876088,0.00024889,2]
[327925997,1716648647029,-12626.8876088,0.00024889,2]
[327925998,1716648647039,-12626.8876088,0.00024889,2]
[327925999,1716648647048,-1610.79772068,0.00024898,2]
[327926000,1716648647058,-531.706862,0.00024898,7]
[327926001,1716648647068,-531.706862,0.00024898,7]
[327926003,1716648647077,-152.892471,0.00024898,7]
[327926005,1716648647088,-151.0,0.00024898,7]
[327926007,1716648647098,-151.0,0.00024898,7]
[327926009,1716648647107,-215.808693,0.00024898,7]
[327926011,1716648647116,-205.630108,0.00024898,7]
[327926013,1716648647126,-215.808693,0.00024898,7]
[327926015,1716648647136,-205.630108,0.00024898,7]
[327926017,1716648647147,-151.0,0.00024898,7]
[327926018,1716648647156,-151.0,0.00024898,7]
[327926020,1716648647165,-151.0,0.00024898,7]
[327926022,1716648647174,-151.0,0.00024898,7]
[327926024,1716648647185,-151.0,0.00024898,7]
[327926026,1716648647194,-151.0,0.00024898,7]
[327926028,1716648647203,-151.0,0.00024898,7]
[327926030,1716648647213,-151.0,0.00024898,7]
[327926032,1716648647222,-155.116449,0.00024898,7]
[327926034,1716648647232,-151.0,0.00024898,7]
[327926035,1716648647242,-151.0,0.00024898,7]
[327926037,1716648647252,-201.94525,0.00024898,7]
[327926039,1716648647261,-1078.222191,0.00024898,7]
[327926041,1716648647271,-151.0,0.00024898,7]
[327926043,1716648647280,-1078.222191,0.00024898,7]
[327926045,1716648647289,-151.0,0.00024898,7]
[327926047,1716648647299,-151.0,0.00024898,7]
[327926049,1716648647308,-151.0,0.00024898,7]
[327926050,1716648647317,-151.0,0.00024898,7]
[327926051,1716648647327,-151.0,0.00024898,7]
[327926052,1716648647336,-151.0,0.00024898,7]
[327926053,1716648647346,-183.600768,0.00024898,7]
[327926054,1716648647355,-183.600768,0.00024898,7]
[327926055,1716648647364,-151.0,0.00024898,7]
[327926056,1716648647373,-151.0,0.00024898,7]
[327926057,1716648647382,-151.0,0.00024898,7]
[327926058,1716648647391,-152.34218529,0.00024904,2]
[327926059,1716648647401,-459.06088173,0.00024923,2]
[327926060,1716648647410,-715.49994283,0.00024959,2]
[327926061,1716648647419,-7789.6922771,0.00024983,2]
[327926062,1716648647428,-9087.9180646,0.00024983,2]
[327926063,1716648647438,-153.361344,0.00024983,7]
[327926064,1716648647448,-213.439303,0.00024983,7]
[327926065,1716648647457,-151.0,0.00024983,7]
[327926066,1716648647466,-150.0,0.00024999,2]
[327926067,1716648647476,-150.0,0.00024999,2]
[327926068,1716648647485,-2233.54079187,0.00025,2]
[327926070,1716648647496,-155.60660082,0.00025,2]
[327926072,1716648647506,-292.85432172,0.00025,2]
[327926074,1716648647515,-327.78454066,0.00025,2]
[327926076,1716648647525,-1277.55903137,0.00025,2]
[327926078,1716648647534,-905123.61950629,0.00025,2]
[327926105,1716648647796,-2130.22655971,0.00025,2]
[327926144,1716648648172,-322.94582393,0.000129,2]
[327926146,1716648648183,-3419.30812045,0.00025,2]
[327926148,1716648648194,-1026.04080833,0.00025,2]
[327926155,1716648648250,-101979.77111103,0.00025,2]
[327926157,1716648648262,-12179.66173985,0.00025,2]
[327926166,1716648648338,-3452.55,0.00025,2]
[327926168,1716648648349,-658.89701571,0.00025,2]
[327926170,1716648648361,-3380.44659336,0.00025,2]
[327926173,1716648648373,-4603.30914144,0.00025,2]
[327926175,1716648648385,-137210.86087545,0.00025,2]
[327926200,1716648648618,-5122.07639723,0.00016338,2]
[327926202,1716648648628,-7550.04764684,0.00025,2]
[327926204,1716648648640,-3529.11975385,0.00025,2]
[327926207,1716648648654,-3397.76989014,0.00025,2]
[327926209,1716648648666,-1269.05719409,0.00025,2]
[327926211,1716648648678,-2971.4261541,0.00025,2]
[327926213,1716648648690,-4193.9,0.00025,2]
[327926216,1716648648702,-17571.78652725,0.00025,2]
[327926218,1716648648714,-723.49542968,0.00025,2]
[327926220,1716648648726,-1795.66259684,0.00025,2]
[327926222,1716648648738,-480.04055928,0.00025,2]
[327926225,1716648648750,-85024.06199734,0.00025,2]
[327926227,1716648648762,-8297.89290846,0.00025,2]
[327926229,1716648648774,-359.23969435,0.00025,2]
[327926231,1716648648786,-3642.79917391,0.00025,2]
[327926234,1716648648798,-14350.34572739,0.00025,2]
[327926236,1716648648810,-319.06,0.00025,2]
[327926238,1716648648822,-354210.42288848,0.00025,2]
[327926257,1716648648999,-325.48505657,0.00025,2]
[327926263,1716648649047,-3029.4571773,0.00025,2]
[327926296,1716648649368,-356.60693829,0.00012899,2]
[327926298,1716648649377,-151.0,0.00013,2]
[327926300,1716648649388,-151.0,0.00014504,2]
[327926302,1716648649398,-151.0,0.0002,2]
[327926304,1716648649407,-524.53,0.00020712,2]
[327926306,1716648649417,-191987.37846749,0.00025,2]
[327926308,1716648649427,-155.29079437,0.00025,2]
[327926310,1716648649436,-151.0,0.00025,7]
[327926312,1716648649446,-282.464521,0.00025,7]
[327926314,1716648649456,-1000.0,0.00025,6]
[327926316,1716648649466,-468.0,0.00025,4]
[327926318,1716648649477,-30000.0,0.00025,3]
[327926320,1716648649488,-1150.0,0.00025,2]
[327926322,1716648649500,-531.706862,0.00025,7]
[327926324,1716648649509,-531.706862,0.00025,7]
[327926326,1716648649519,-151.0,0.00025,7]
[327926328,1716648649528,-151.0,0.00025,7]
[327926330,1716648649537,-215.808693,0.00025,7]
[327926332,1716648649547,-205.630108,0.00025,7]
[327926334,1716648649557,-215.808693,0.00025,7]
[327926336,1716648649567,-205.630108,0.00025,7]
[327926338,1716648649576,-157.583565,0.00025,7]
[327926340,1716648649587,-151.0,0.00025,7]
[327926342,1716648649597,-151.0,0.00025,7]
[327926344,1716648649607,-151.0,0.00025,7]
[327926346,1716648649617,-151.0,0.00025,7]
[327926348,1716648649627,-153.62194,0.00025,7]
[327926350,1716648649636,-151.0,0.00025,7]
[327926352,1716648649646,-151.0,0.00025,7]
[327926354,1716648649655,-264.664328,0.00025,7]
[327926356,1716648649664,-151.0,0.00025,7]
[327926358,1716648649674,-151.0,0.00025,7]
[327926360,1716648649683,-1078.222191,0.00025,7]
[327926362,1716648649692,-151.0,0.00025,7]
[327926364,1716648649701,-304.03160662,0.00025,7]
[327926366,1716648649713,-774.19058438,0.00025,7]
[327926368,1716648649723,-200.22682,0.00025,7]
[327926370,1716648649732,-151.0,0.00025,7]
[327926372,1716648649741,-272.866339,0.00025,7]
[327926374,1716648649751,-151.0,0.00025,7]
[327926376,1716648649760,-151.0,0.00025,7]
[327926378,1716648649769,-151.0,0.00025,7]
[327926380,1716648649778,-183.600768,0.00025,7]
[327926382,1716648649787,-183.600768,0.00025,7]
[327926385,1716648649797,-151.0,0.00025,7]
[327926387,1716648649807,-151.0,0.00025,7]
[327926389,1716648649816,-151.0,0.00025,7]
[327926391,1716648649825,-156.13314999,0.00025004,2]
[327926392,1716648649834,-153.10769663,0.00025066,2]
[327926394,1716648649843,-715.49994283,0.0002509,2]
[327926396,1716648649853,-151.26,0.00025096,2]
[327926399,1716648649863,-2565.47546882,0.00025173,2]
[327926401,1716648649873,-166.66666666,0.00025173,2]
[327926403,1716648649886,-300.0,0.00025176,2]
[327926405,1716648649895,-440.0,0.00025176,2]
[327926407,1716648649905,-1262.0,0.00025176,2]
[327926409,1716648649914,-312.98,0.00025176,2]
[327926411,1716648649923,-1138.0,0.00025176,2]
[327926412,1716648649932,-504.934,0.00025176,2]
[327926414,1716648649941,-5762.0,0.00025176,2]
[327926416,1716648649951,-18314.63653012,0.00025176,2]
[327926419,1716648649963,-611.72800092,0.00025176,2]
[327926421,1716648649975,-1381.17004675,0.00025176,2]
[327926423,1716648649986,-1647.09143245,0.00025176,2]
[327926425,1716648649997,-904.64662748,0.00025176,2]
[327926429,1716648650029,-221.59,0.0002289,3]
[327926430,1716648650038,-349.97825341,0.00025176,2]
[327926431,1716648650048,-1124.81297532,0.00025176,2]
[327926432,1716648650060,-13585.93613355,0.00025176,2]
[327926433,1716648650069,-152.79444414,0.00025182,2]
[327926434,1716648650078,-1000.0,0.00025205,2]
[327926435,1716648650088,-238.78578006,0.00025259,2]
[327926436,1716648650098,-183.97971737,0.00025266,2]
[327926437,1716648650107,-692.98,0.000253,2]
[327926438,1716648650117,-238.78578006,0.00025322,2]
[327926439,1716648650126,-153.10769663,0.00025329,2]
[327926440,1716648650136,-154.92674632,0.00025331,2]
[327926441,1716648650145,-375.48871791,0.00025331,2]
[327926442,1716648650154,-382.0,0.0002536,2]
[327926443,1716648650163,-210.0,0.0002536,2]
[327926444,1716648650172,-169.00998555,0.00025372,2]
[327926445,1716648650182,-150.0,0.00025375,2]
[327926446,1716648650191,-238.78578006,0.00025424,2]
[327926447,1716648650201,-159.1909715,0.00025427,2]
[327926448,1716648650210,-159.24928825,0.00025493,2]
[327926449,1716648650219,-159.24928825,0.00025498,2]
[327926450,1716648650229,-152.34218529,0.00025536,2]
[327926451,1716648650238,-400.43,0.00025553,2]
[327926452,1716648650248,-160.68183301,0.00025609,2]
[327926453,1716648650257,-157.2664868,0.00025629,2]
[327926454,1716648650266,-161.38596787,0.00025705,2]
[327926455,1716648650276,-238.78578006,0.00025789,2]
[327926456,1716648650285,-382.0,0.0002588,2]
[327926457,1716648650294,-210.0,0.0002588,2]
[327926458,1716648650304,-870.49,0.00025918,2]
[327926459,1716648650313,-415.94,0.00025918,2]
[327926460,1716648650323,-870.49,0.00025918,2]
[327926461,1716648650334,-415.94,0.00025918,2]
[327926462,1716648650343,-870.49,0.00025918,2]
[327926463,1716648650352,-415.94,0.00025918,2]
[327926464,1716648650361,-415.94,0.00025918,2]
[327926465,1716648650371,-415.94,0.00025918,2]
[327926466,1716648650381,-415.94,0.00025918,2]
[327926467,1716648650391,-415.94,0.00025918,2]
[327926468,1716648650401,-415.94,0.00025918,2]
[327926469,1716648650410,-415.94,0.00025918,2]
[327926470,1716648650420,-415.94,0.00025918,2]
[327926471,1716648650430,-196.44,0.00025918,2]
[327926472,1716648650439,-459.06088173,0.00025923,2]
[327926473,1716648650448,-17443.5,0.00026,2]
[327926474,1716648650457,-1946.24897947,0.00026,5]
[327926475,1716648650469,-21577.60443806,0.00026,5]
[327926476,1716648650480,-715.49994283,0.00026049,2]
[327926477,1716648650489,-166.83499667,0.0002608,2]
[327926478,1716648650499,-156.13314999,0.00026146,2]
[327926479,1716648650509,-715.49994283,0.00026154,2]
[327926480,1716648650518,-166.66666667,0.00026156,2]
[327926481,1716648650528,-152.0,0.00026158,2]
[327926482,1716648650537,-459.06088173,0.00026177,2]
[327926483,1716648650547,-152.79444414,0.00026196,2]
[327926484,1716648650556,-178.27846635,0.00026242,2]
[327926485,1716648650565,-166.66666667,0.0002633,2]
[327926486,1716648650575,-382.0,0.0002639,2]
[327926487,1716648650586,-210.0,0.0002639,2]
[327926488,1716648650595,-155.16811637,0.00026448,2]
[327926489,1716648650604,-150.0,0.00026451,2]
[327926490,1716648650614,-509.67692697,0.00026511,2]
[327926491,1716648650623,-168.29942057,0.00026535,2]
[327926492,1716648650632,-459.06088173,0.00026549,2]
[327926493,1716648650641,-375.48871791,0.00026564,2]
[327926494,1716648650650,-459.06088173,0.00026584,2]
[327926495,1716648650660,-12626.8876088,0.00026588,2]
[327926496,1716648650669,-1500.0,0.00026592,2]
[327926497,1716648650679,-150.0,0.00026614,2]
[327926498,1716648650688,-715.49994283,0.00026622,2]
[327926499,1716648650697,-150.0,0.00026628,2]
[327926500,1716648650706,-154.92674632,0.00026652,2]
[327926501,1716648650715,-159.86547132,0.00026699,2]
[327926502,1716648650724,-157.2664868,0.00026718,2]
[327926503,1716648650733,-150.0,0.0002675,2]
[327926504,1716648650743,-184.40831383,0.00026753,2]
[327926505,1716648650751,-238.78578006,0.00026798,2]
[327926506,1716648650761,-692.98,0.000268,2]
[327926507,1716648650770,-375.48871791,0.00026875,2]
[327926508,1716648650779,-382.0,0.0002691,2]
[327926509,1716648650788,-210.0,0.0002691,2]
[327926510,1716648650797,-150.0,0.00026917,2]
[327926511,1716648650806,-152.82,0.00026921,2]
[327926512,1716648650816,-166.93,0.00026921,2]
[327926513,1716648650825,-150.0,0.00026944,2]
[327926514,1716648650836,-155.32938529,0.00026953,2]
[327926515,1716648650845,-715.49994283,0.00026974,2]
[327926516,1716648650854,-30000.0,0.00027,3]
[327926517,1716648650863,-1200.0,0.00027,2]
[327926518,1716648650873,-155.32938529,0.00027001,2]
[327926519,1716648650887,-153.10769663,0.00027018,2]
[327926520,1716648650895,-157.42668521,0.00027047,2]
[327926521,1716648650904,-150.0,0.0002705,2]
[327926522,1716648650915,-153.10769663,0.00027063,2]
[327926523,1716648650924,-150.0,0.00027065,2]
[327926524,1716648650934,-1005.87491253,0.00027199,2]
[327926525,1716648650942,-2565.47546882,0.00027218,2]
[327926526,1716648650951,-150.0,0.00027244,2]
[327926527,1716648650961,-459.06088173,0.00027263,2]
[327926528,1716648650970,-238.78578006,0.00027268,2]
[327926529,1716648650979,-161.0,0.0002728,14]
[327926530,1716648650988,-157.34796658,0.00027327,2]
[327926531,1716648650997,-150.0,0.00027344,2]
[327926532,1716648651006,-375.48871791,0.00027355,2]
[327926533,1716648651016,-152.34218529,0.00027358,2]
[327926534,1716648651026,-150.0,0.00027381,2]
[327926535,1716648651036,-157.2664868,0.00027387,2]
[327926536,1716648651045,-300.0,0.00027396,2]
[327926537,1716648651055,-301.93626763,0.00027397,2]
[327926538,1716648651064,-151.0,0.00027397,7]
[327926539,1716648651073,-151.0,0.00027397,7]
[327926540,1716648651082,-151.0,0.00027397,7]
[327926541,1716648651094,-151.0,0.00027397,7]
[327926542,1716648651103,-151.0,0.00027397,7]
[327926543,1716648651112,-158.692134,0.00027397,7]
[327926544,1716648651121,-151.0,0.00027397,7]
[327926545,1716648651131,-151.0,0.00027397,7]
[327926546,1716648651140,-153.701705,0.00027397,7]
[327926547,1716648651150,-583.24,0.00027397,10]
[327926548,1716648651159,-150.0,0.00027399,2]
[327926549,1716648651168,-503.97775818,0.000274,2]
[327926550,1716648651177,-842.74132985,0.000274,2]
[327926551,1716648651186,-459.06088173,0.0002741,2]
[327926552,1716648651195,-382.0,0.0002742,2]
[327926553,1716648651204,-210.0,0.0002742,2]
[327926554,1716648651214,-154.92674632,0.00027451,2]
[327926555,1716648651223,-375.48871791,0.00027462,2]
[327926556,1716648651232,-375.48871791,0.00027463,2]
[327926557,1716648651242,-157.2664868,0.00027476,2]
[327926558,1716648651251,-150.0,0.00027546,2]
[327926559,1716648651260,-238.78578006,0.00027594,2]
[327926560,1716648651269,-375.48871791,0.00027647,2]
[327926561,1716648651279,-150.0,0.00027669,2]
[327926562,1716648651288,-152.34218529,0.00027675,2]
[327926563,1716648651297,-150.0,0.00027681,2]
[327926564,1716648651307,-1500.0,0.00027686,2]
[327926565,1716648651317,-715.49994283,0.00027695,2]
[327926566,1716648651326,-303.00416369,0.00027747,2]
[327926567,1716648651337,-150.0,0.00027747,2]
[327926568,1716648651347,-238.78578006,0.00027759,2]
[327926569,1716648651357,-300.0,0.00027787,2]
[327926570,1716648651366,-304.80381444,0.00027797,2]
[327926571,1716648651376,-150.0,0.00027797,2]
[327926572,1716648651386,-150.0,0.00027802,2]
[327926573,1716648651395,-400.43,0.00027816,2]
[327926574,1716648651405,-150.0,0.00027822,2]
[327926575,1716648651414,-234.0,0.0002784,2]
[327926576,1716648651423,-311.62310367,0.00027842,2]
[327926577,1716648651432,-300.0,0.00027901,2]
[327926578,1716648651442,-1500.0,0.00027904,2]
[327926579,1716648651451,-459.06088173,0.00027915,2]
[327926580,1716648651460,-238.78578006,0.00027921,2]
[327926581,1716648651470,-1500.0,0.00027933,2]
[327926582,1716648651479,-382.0,0.0002794,2]
[327926583,1716648651488,-210.0,0.0002794,2]
[327926584,1716648651497,-150.0,0.0002794,2]
[327926585,1716648651507,-150.0,0.00027982,2]
[327926586,1716648651516,-3217.0,0.00028,2]
[327926587,1716648651526,-207.96435861,0.00028,2]
[327926588,1716648651535,-151.0,0.00028,7]
[327926589,1716648651544,-174.7061953,0.00028,2]
[327926590,1716648651554,-554.66344175,0.00028,2]
[327926591,1716648651563,-531.706862,0.00028,7]
[327926592,1716648651572,-531.706862,0.00028,7]
[327926593,1716648651581,-151.0,0.00028,7]
[327926594,1716648651596,-151.0,0.00028,7]
[327926595,1716648651605,-215.808693,0.00028,7]
[327926596,1716648651614,-205.630108,0.00028,7]
[327926597,1716648651623,-215.808693,0.00028,7]
[327926598,1716648651631,-205.630108,0.00028,7]
[327926599,1716648651640,-151.0,0.00028,7]
[327926600,1716648651649,-151.0,0.00028,7]
[327926601,1716648651658,-151.0,0.00028,7]
[327926602,1716648651667,-151.0,0.00028,7]
[327926603,1716648651676,-151.0,0.00028,7]
[327926604,1716648651686,-151.0,0.00028,7]
[327926605,1716648651695,-151.0,0.00028,7]
[327926606,1716648651704,-151.0,0.00028,7]
[327926607,1716648651713,-151.0,0.00028,7]
[327926608,1716648651723,-823.703518,0.00028,2]
[327926609,1716648651732,-1078.222191,0.00028,7]
[327926610,1716648651741,-151.0,0.00028,7]
[327926611,1716648651750,-1078.222191,0.00028,7]
[327926612,1716648651760,-151.0,0.00028,7]
[327926613,1716648651769,-151.0,0.00028,7]
[327926614,1716648651778,-151.0,0.00028,7]
[327926615,1716648651787,-151.0,0.00028,7]
[327926616,1716648651796,-183.600768,0.00028,7]
[327926617,1716648651805,-183.600768,0.00028,7]
[327926618,1716648651815,-243.742375,0.00028,7]
[327926619,1716648651824,-151.0,0.00028,7]
[327926620,1716648651833,-246.251261,0.00028,7]
[327926621,1716648651847,-36544.79575555,0.00028,2]
[327926622,1716648651860,-3789.26332645,0.00028,2]
[327926623,1716648651871,-4030.75897368,0.00028,2]
[327926624,1716648651888,-5456.68684212,0.00028,2]
[327926625,1716648651911,-337.29571537,0.00014503,2]
[327926626,1716648651922,-2686.83591028,0.00028,2]
[327926628,1716648796469,1000.0,0.00030408,120]
[327926654,1716649833648,-1180.53626452,0.00012609,2]
[327926656,1716649833658,-834.25577502,0.0001261,2]
[327926658,1716649833668,-369.67747622,0.00012698,2]
[327926660,1716649833677,-212.26858926,0.00012698,2]
[327926662,1716649833687,-636.72864804,0.00012699,2]
[327926664,1716649833697,-27726.1973478,0.000127,2]
[327926666,1716649833709,-11735.5446522,0.000127,2]
[327926668,1716649833718,-152.82,0.00013973,2]
[327926670,1716649833727,-619.31575855,0.00015,2]
[327926672,1716649833736,-1227.82126936,0.000165,2]
[327926674,1716649833746,-1283.98392734,0.0001699,2]
[327926676,1716649833755,-5083.27432854,0.00017,2]
[327926677,1716649833764,-499.99,0.00017,2]
[327926678,1716649833774,-7548.46,0.00017534,2]
[327926679,1716649833784,-704.892,0.00017676,2]
[327926680,1716649833793,-37920.0,0.00017676,2]
[327926681,1716649833802,-804.30557965,0.00018,2]
[327926682,1716649833811,-410.60328131,0.00019,2]
[327926683,1716649833822,-1000.0,0.00019574,2]
[327926684,1716649833831,-220.23,0.00019736,2]
[327926685,1716649833840,-155.0,0.0002,2]
[327926686,1716649833850,-6242.82236079,0.0002,2]
[327926687,1716649833862,-155.0,0.0002,2]
[327926688,1716649833871,-155.0,0.0002,2]
[327926690,1716649833881,-158.57592294,0.0002,2]
[327926692,1716649833890,-155.0,0.0002,2]
[327926694,1716649833899,-155.0,0.0002,2]
[327926696,1716649833908,-159.2,0.00020214,2]
[327926698,1716649833918,-184.66,0.00020666,3]
[327926700,1716649833927,-553.98,0.00020666,3]